fUST/lending_fUST_20241213
["ID","MTS","AMOUNT","RATE_DAILY","PERIOD"]
[345187091,1734078641582,-779.13,0.00027945,7]
[345187092,1734078641591,-500.0,0.00027945,7]
[345187093,1734078641601,-7192.57,0.00027945,7]
[345187094,1734078641610,-596.08743239,0.00027945,7]
[345187095,1734078641620,-340.46385008,0.00027945,7]
[345187096,1734078641629,-1333.31,0.00027945,7]
[345187097,1734078641639,-500.0,0.00027945,7]
[345187098,1734078641648,-500.0,0.00027945,7]
[345187099,1734078641658,-782.55,0.00027945,7]
[345187100,1734078641667,-1200.95,0.00027945,7]
[345187101,1734078641676,-500.0,0.00027945,7]
[345187102,1734078641686,-500.0,0.00027945,7]
[345187103,1734078641695,-500.0,0.00027945,7]
[345187104,1734078641704,-5537.21,0.00027945,7]
[345187105,1734078641719,-500.0,0.00027945,7]
[345187106,1734078641728,-500.0,0.00027945,7]
[345187107,1734078641737,-2226.79,0.00027945,7]
[345187108,1734078641747,-500.0,0.00027945,7]
[345187109,1734078641757,-500.0,0.00027945,7]
[345187110,1734078641767,-500.0,0.00027945,7]
[345187111,1734078641777,-1517.55,0.00027945,7]
[345187112,1734078641789,-500.0,0.00027945,7]
[345187113,1734078641799,-965.25,0.00027945,7]
[345187114,1734078641811,-500.0,0.00027945,7]
[345187115,1734078641821,-500.0,0.00027945,7]
[345187116,1734078641832,-500.0,0.00027945,7]
[345187117,1734078641843,-1796.64,0.00027945,7]
[345187118,1734078641853,-1433.46,0.00027945,7]
[345187119,1734078641863,-500.0,0.00027945,7]
[345187120,1734078641872,-500.0,0.00027945,7]
[345187121,1734078641882,-500.0,0.00027945,7]
[345187122,1734078641891,-500.0,0.00027945,7]
[345187123,1734078641900,-500.0,0.00027945,7]
[345187124,1734078641910,-680.55,0.00027945,7]
[345187125,1734078641919,-500.0,0.00027945,7]
[345187126,1734078641928,-3308.7,0.00027945,7]
[345187127,1734078641940,-500.0,0.00027945,7]
[345187128,1734078641950,-637.73500703,0.00027945,7]
[345187129,1734078641967,-547.79,0.00027945,7]
[345187130,1734078641976,-500.0,0.00027945,7]
[345187131,1734078641985,-500.0,0.00027945,7]
[345187132,1734078641994,-500.0,0.00027945,7]
[345187133,1734078642003,-864.2,0.00027945,7]
[345187134,1734078642012,-500.0,0.00027945,7]
[345187135,1734078642021,-996.91,0.00027945,7]
[345187136,1734078642031,-500.0,0.00027945,7]
[345187137,1734078642040,-500.0,0.00027945,7]
[345187138,1734078642050,-500.0,0.00027945,7]
[345187139,1734078642060,-1115.73,0.00027945,7]
[345187140,1734078642070,-500.0,0.00027945,7]
[345187141,1734078642080,-644.68,0.00027945,7]
[345187142,1734078642089,-500.0,0.00027945,7]
[345187143,1734078642098,-631.09533364,0.00027945,7]
[345187144,1734078642111,-500.0,0.00027945,7]
[345187145,1734078642121,-1725.36,0.00027945,7]
[345187146,1734078642130,-500.0,0.00027945,7]
[345187147,1734078642140,-669.81,0.00027945,7]
[345187148,1734078642149,-804.63,0.00027945,7]
[345187149,1734078642159,-500.0,0.00027973,5]
[345187150,1734078642168,-162.4,0.00028,2]
[345187151,1734078642180,-700.0,0.00028,2]
[345187152,1734078642189,-413.17594797,0.00028114,2]
[345187153,1734078642199,-500.0,0.00028158,2]
[345187154,1734078642211,-420.0,0.0002816,2]
[345187155,1734078642220,-500.0,0.00028219,7]
[345187156,1734078642231,-500.0,0.00028219,7]
[345187157,1734078642240,-151.0,0.00028219,7]
[345187158,1734078642250,-151.0,0.00028219,7]
[345187159,1734078642259,-151.0,0.00028219,7]
[345187160,1734078642272,-219.979381,0.00028219,7]
[345187161,1734078642282,-500.0,0.00028219,7]
[345187162,1734078642291,-376.0611377,0.00028219,7]
[345187163,1734078642300,-500.0,0.00028219,7]
[345187164,1734078642311,-500.0,0.00028219,7]
[345187165,1734078642320,-275.42586084,0.00028219,7]
[345187166,1734078642329,-500.0,0.00028219,7]
[345187167,1734078642340,-500.0,0.00028219,7]
[345187168,1734078642351,-500.0,0.00028219,7]
[345187169,1734078642360,-500.0,0.00028219,7]
[345187170,1734078642370,-783.35,0.00028219,7]
[345187171,1734078642379,-500.0,0.00028219,7]
[345187172,1734078642389,-500.0,0.00028219,7]
[345187173,1734078642398,-500.0,0.00028219,7]
[345187174,1734078642408,-500.0,0.00028219,7]
[345187175,1734078642418,-500.0,0.00028219,7]
[345187176,1734078642427,-507.82,0.00028219,7]
[345187177,1734078642436,-500.0,0.00028219,7]
[345187178,1734078642446,-348.35980889,0.00028219,7]
[345187179,1734078642455,-500.0,0.00028219,7]
[345187180,1734078642466,-500.0,0.00028219,7]
[345187181,1734078642475,-635.99,0.00028219,7]
[345187182,1734078642484,-500.0,0.00028219,7]
[345187183,1734078642493,-500.0,0.00028219,7]
[345187184,1734078642503,-500.0,0.00028219,7]
[345187185,1734078642512,-500.0,0.00028219,7]
[345187186,1734078642521,-500.0,0.00028219,7]
[345187187,1734078642531,-500.0,0.00028219,7]
[345187188,1734078642542,-500.0,0.00028219,7]
[345187189,1734078642551,-500.0,0.00028219,7]
[345187191,1734078642561,-500.0,0.00028219,7]
[345187192,1734078642571,-500.0,0.00028219,7]
[345187193,1734078642580,-500.0,0.00028219,7]
[345187194,1734078642589,-500.0,0.00028219,7]
[345187195,1734078642600,-1102.96,0.00028219,7]
[345187196,1734078642609,-500.0,0.00028219,7]
[345187197,1734078642619,-500.0,0.00028219,7]
[345187198,1734078642628,-500.0,0.00028219,7]
[345187199,1734078642638,-500.0,0.00028219,7]
[345187200,1734078642648,-500.0,0.00028219,7]
[345187201,1734078642658,-500.0,0.00028219,7]
[345187202,1734078642668,-953.29,0.00028219,7]
[345187203,1734078642678,-500.0,0.00028219,7]
[345187204,1734078642688,-500.0,0.00028219,7]
[345187205,1734078642697,-500.0,0.00028219,7]
[345187206,1734078642713,-500.0,0.00028219,7]
[345187207,1734078642722,-500.0,0.00028219,7]
[345187208,1734078642732,-500.0,0.00028219,2]
[345187210,1734078642743,-500.0,0.00028219,7]
[345187211,1734078642753,-500.0,0.00028219,7]
[345187212,1734078642763,-610.10836681,0.00028219,7]
[345187213,1734078642774,-632.97,0.00028219,7]
[345187214,1734078642784,-500.0,0.00028219,7]
[345187215,1734078642794,-500.0,0.00028219,7]
[345187216,1734078642803,-791.85,0.00028219,7]
[345187217,1734078642813,-506.98,0.00028219,7]
[345187219,1734078642824,-500.0,0.00028219,7]
[345187220,1734078642834,-500.0,0.00028219,7]
[345187222,1734078642844,-500.0,0.00028219,7]
[345187224,1734078642854,-2029.66,0.00028219,7]
[345187226,1734078642864,-500.0,0.00028219,7]
[345187228,1734078642874,-500.0,0.00028219,7]
[345187230,1734078642884,-500.0,0.00028219,7]
[345187232,1734078642894,-500.0,0.00028219,7]
[345187234,1734078642904,-500.0,0.00028219,7]
[345187236,1734078642914,-500.0,0.00028219,7]
[345187238,1734078642923,-500.0,0.00028219,7]
[345187240,1734078642933,-500.0,0.00028219,7]
[345187242,1734078642943,-500.0,0.00028219,7]
[345187244,1734078642953,-500.0,0.00028219,7]
[345187246,1734078642966,-500.0,0.00028219,7]
[345187248,1734078642976,-652.81,0.00028219,7]
[345187250,1734078642989,-500.0,0.00028219,7]
[345187252,1734078642999,-629.53,0.00028219,7]
[345187254,1734078643009,-500.0,0.00028219,7]
[345187256,1734078643019,-500.0,0.00028219,7]
[345187258,1734078643029,-518.98,0.00028219,7]
[345187260,1734078643039,-572.55,0.00028219,7]
[345187262,1734078643049,-500.0,0.00028219,7]
[345187264,1734078643059,-500.0,0.00028219,7]
[345187266,1734078643070,-763.88,0.00028219,7]
[345187268,1734078643080,-500.0,0.00028219,7]
[345187270,1734078643090,-500.0,0.00028219,7]
[345187272,1734078643099,-789.22,0.00028219,7]
[345187274,1734078643109,-500.0,0.00028219,7]
[345187276,1734078643119,-500.0,0.00028219,7]
[345187278,1734078643129,-500.0,0.00028219,7]
[345187280,1734078643139,-500.0,0.00028219,7]
[345187282,1734078643149,-910.97,0.00028219,7]
[345187284,1734078643158,-1056.83,0.00028219,7]
[345187286,1734078643168,-500.0,0.00028219,7]
[345187288,1734078643178,-500.0,0.00028219,7]
[345187290,1734078643189,-500.0,0.00028219,7]
[345187293,1734078643199,-500.0,0.00028219,7]
[345187294,1734078643209,-500.0,0.00028219,7]
[345187296,1734078643219,-500.0,0.00028219,7]
[345187299,1734078643229,-468.63518002,0.00028219,7]
[345187301,1734078643240,-500.0,0.00028219,7]
[345187303,1734078643250,-500.0,0.00028219,7]
[345187305,1734078643260,-500.0,0.00028219,7]
[345187307,1734078643271,-286.69884751,0.00028219,7]
[345187309,1734078643283,-1158.96,0.00028219,7]
[345187311,1734078643292,-500.0,0.00028219,7]
[345187313,1734078643302,-500.0,0.00028219,7]
[345187315,1734078643311,-500.0,0.00028219,7]
[345187317,1734078643321,-607.31,0.00028219,7]
[345187319,1734078643331,-974.96,0.00028219,7]
[345187321,1734078643341,-954.4,0.00028219,7]
[345187323,1734078643352,-500.0,0.00028219,7]
[345187325,1734078643363,-500.0,0.00028219,7]
[345187326,1734078643372,-500.0,0.00028219,7]
[345187329,1734078643382,-500.0,0.00028219,7]
[345187330,1734078643392,-500.0,0.00028219,7]
[345187332,1734078643402,-500.0,0.00028219,7]
[345187333,1734078643411,-315.92869112,0.00028219,7]
[345187334,1734078643421,-500.0,0.00028219,7]
[345187335,1734078643430,-500.0,0.00028219,7]
[345187336,1734078643441,-500.0,0.00028219,7]
[345187337,1734078643451,-789.13,0.00028219,7]
[345187338,1734078643462,-500.0,0.00028219,7]
[345187339,1734078643471,-500.0,0.00028219,7]
[345187340,1734078643481,-500.0,0.00028219,7]
[345187342,1734078643491,-500.0,0.00028219,7]
[345187343,1734078643500,-500.0,0.00028219,7]
[345187346,1734078643665,-672.89,0.00028219,7]
[345187347,1734078643703,-500.0,0.00028219,7]
[345187349,1734078643714,-500.0,0.00028219,7]
[345187351,1734078643724,-500.0,0.00028219,7]
[345187353,1734078643733,-500.0,0.00028219,7]
[345187355,1734078643743,-500.0,0.00028219,7]
[345187357,1734078643752,-1041.67,0.00028219,7]
[345187359,1734078643762,-500.0,0.00028219,7]
[345187361,1734078643772,-834.43,0.00028219,7]
[345187362,1734078643781,-601.32,0.00028219,7]
[345187363,1734078643790,-500.0,0.00028219,7]
[345187364,1734078643800,-500.0,0.00028219,7]
[345187365,1734078643809,-500.0,0.00028219,7]
[345187366,1734078643819,-500.0,0.00028219,7]
[345187367,1734078643829,-563.47,0.00028219,7]
[345187368,1734078643837,-686.28,0.00028219,7]
[345187369,1734078643847,-843.84,0.00028219,7]
[345187370,1734078643857,-500.0,0.00028219,7]
[345187371,1734078643866,-605.99,0.00028219,7]
[345187372,1734078643875,-500.0,0.00028219,7]
[345187373,1734078643884,-1608.600099,0.00028219,7]
[345187374,1734078643893,-1608.600099,0.00028219,7]
[345187375,1734078643902,-897.02,0.00028219,7]
[345187376,1734078643912,-500.0,0.00028219,7]
[345187377,1734078643921,-500.0,0.00028219,7]
[345187378,1734078643930,-1608.600099,0.00028219,7]
[345187379,1734078643939,-1001.09,0.00028219,7]
[345187380,1734078643948,-1608.600099,0.00028219,7]
[345187381,1734078643958,-1608.600103,0.00028219,7]
[345187382,1734078643968,-500.0,0.00028219,7]
[345187383,1734078643978,-500.0,0.00028219,7]
[345187384,1734078643987,-500.0,0.00028219,7]
[345187385,1734078643996,-500.0,0.00028219,7]
[345187386,1734078644005,-577.13,0.00028219,7]
[345187387,1734078644014,-500.0,0.00028219,7]
[345187388,1734078644023,-727.34,0.00028219,7]
[345187389,1734078644032,-574.37,0.00028219,7]
[345187390,1734078644041,-500.0,0.00028219,7]
[345187391,1734078644050,-500.0,0.00028219,7]
[345187392,1734078644060,-538.7,0.00028219,7]
[345187393,1734078644069,-684.45,0.00028219,7]
[345187394,1734078644078,-500.0,0.00028219,7]
[345187395,1734078644088,-527.89,0.00028219,7]
[345187396,1734078644098,-2506.74,0.00028219,7]
[345187397,1734078644107,-1304.53,0.00028219,7]
[345187398,1734078644116,-500.0,0.00028219,7]
[345187399,1734078644126,-500.0,0.00028219,7]
[345187400,1734078644135,-297.88453895,0.00028219,7]
[345187401,1734078644144,-2040.4,0.00028219,7]
[345187402,1734078644153,-2728.43,0.00028219,7]
[345187403,1734078644163,-622.64,0.00028219,7]
[345187404,1734078644172,-500.0,0.00028219,7]
[345187405,1734078644181,-366.54333626,0.00028219,7]
[345187406,1734078644190,-500.0,0.00028219,7]
[345187408,1734078644199,-500.0,0.00028219,7]
[345187410,1734078644211,-500.0,0.00028219,7]
[345187411,1734078644220,-5303.81,0.00028219,7]
[345187413,1734078644229,-851.08,0.00028219,7]
[345187415,1734078644238,-1790.72,0.00028219,7]
[345187416,1734078644247,-500.0,0.00028219,7]
[345187418,1734078644257,-592.03048373,0.00028219,7]
[345187420,1734078644271,-500.0,0.00028219,7]
[345187422,1734078644280,-690.34,0.00028219,7]
[345187425,1734078644290,-500.0,0.00028219,7]
[345187426,1734078644300,-1163.96,0.00028219,7]
[345187429,1734078644311,-500.0,0.00028219,7]
[345187431,1734078644321,-500.0,0.00028219,7]
[345187433,1734078644330,-550.14,0.00028219,7]
[345187435,1734078644341,-545.77,0.00028219,7]
[345187436,1734078644351,-500.0,0.00028219,7]
[345187438,1734078644360,-500.0,0.00028219,7]
[345187441,1734078644370,-827.28,0.00028219,7]
[345187443,1734078644379,-5378.92,0.00028219,7]
[345187445,1734078644389,-859.8,0.00028219,7]
[345187446,1734078644398,-500.0,0.00028219,7]
[345187448,1734078644408,-1085.21,0.00028219,7]
[345187450,1734078644418,-500.0,0.00028219,7]
[345187452,1734078644427,-500.0,0.00028219,7]
[345187454,1734078644437,-500.0,0.00028219,7]
[345187456,1734078644447,-821.59,0.00028219,7]
[345187458,1734078644456,-533.54,0.00028219,7]
[345187460,1734078644468,-806.41,0.00028219,7]
[345187462,1734078644477,-500.0,0.00028219,7]
[345187464,1734078644486,-500.0,0.00028219,7]
[345187465,1734078644495,-1029.12,0.00028219,7]
[345187467,1734078644505,-500.0,0.00028219,7]
[345187469,1734078644515,-500.0,0.00028219,7]
[345187471,1734078644525,-500.0,0.00028219,7]
[345187473,1734078644535,-500.0,0.00028219,7]
[345187475,1734078644544,-500.0,0.00028219,7]
[345187477,1734078644554,-174.668495,0.00028219,7]
[345187479,1734078644563,-500.0,0.00028219,7]
[345187481,1734078644573,-500.0,0.00028219,7]
[345187483,1734078644583,-500.0,0.00028219,7]
[345187486,1734078644593,-500.0,0.00028219,7]
[345187488,1734078644602,-500.0,0.00028219,7]
[345187490,1734078644612,-9507.43,0.00028219,7]
[345187492,1734078644622,-500.0,0.00028219,7]
[345187494,1734078644632,-500.0,0.00028219,7]
[345187496,1734078644642,-790.41,0.00028219,7]
[345187498,1734078644652,-500.0,0.00028219,7]
[345187500,1734078644662,-783.22,0.00028219,7]
[345187501,1734078644671,-500.0,0.00028219,7]
[345187503,1734078644681,-500.0,0.00028219,7]
[345187506,1734078644691,-500.0,0.00028219,7]
[345187508,1734078644700,-682.83,0.00028219,7]
[345187510,1734078644711,-500.0,0.00028219,7]
[345187511,1734078644720,-500.0,0.00028219,7]
[345187513,1734078644730,-668.84,0.00028219,7]
[345187515,1734078644739,-1524.48,0.00028219,7]
[345187517,1734078644749,-500.0,0.00028219,7]
[345187519,1734078644759,-500.0,0.00028219,7]
[345187521,1734078644768,-500.0,0.00028219,7]
[345187523,1734078644777,-500.0,0.00028219,7]
[345187525,1734078644787,-500.0,0.00028219,7]
[345187527,1734078644796,-500.0,0.00028219,7]
[345187529,1734078644806,-505.82,0.00028219,7]
[345187531,1734078644815,-725.37,0.00028219,7]
[345187533,1734078644825,-787.09,0.00028219,7]
[345187535,1734078644834,-779.13,0.00028219,7]
[345187537,1734078644844,-500.0,0.00028219,7]
[345187539,1734078644854,-7192.57,0.00028219,7]
[345187541,1734078644864,-1333.31,0.00028219,7]
[345187543,1734078644873,-500.0,0.00028219,7]
[345187545,1734078644884,-500.0,0.00028219,7]
[345187547,1734078644896,-782.55,0.00028219,7]
[345187549,1734078644906,-1200.95,0.00028219,7]
[345187551,1734078644915,-500.0,0.00028219,7]
[345187553,1734078644925,-500.0,0.00028219,7]
[345187555,1734078644935,-500.0,0.00028219,7]
[345187557,1734078644945,-5537.21,0.00028219,7]
[345187559,1734078644954,-500.0,0.00028219,7]
[345187561,1734078644967,-500.0,0.00028219,7]
[345187563,1734078644980,-2226.79,0.00028219,7]
[345187565,1734078644989,-500.0,0.00028219,7]
[345187567,1734078644999,-500.0,0.00028219,7]
[345187569,1734078645008,-500.0,0.00028219,7]
[345187571,1734078645018,-1517.55,0.00028219,7]
[345187573,1734078645028,-500.0,0.00028219,7]
[345187575,1734078645037,-965.25,0.00028219,7]
[345187577,1734078645047,-500.0,0.00028219,7]
[345187579,1734078645057,-640.65477382,0.00028219,7]
[345187581,1734078645066,-500.0,0.00028219,7]
[345187583,1734078645076,-1796.64,0.00028219,7]
[345187585,1734078645087,-1433.46,0.00028219,7]
[345187587,1734078645097,-500.0,0.00028219,7]
[345187589,1734078645108,-500.0,0.00028219,7]
[345187591,1734078645117,-500.0,0.00028219,7]
[345187593,1734078645127,-500.0,0.00028219,7]
[345187595,1734078645136,-500.0,0.00028219,7]
[345187597,1734078645146,-680.55,0.00028219,7]
[345187599,1734078645155,-500.0,0.00028219,7]
[345187601,1734078645164,-2602.89923544,0.00028219,7]
[345187622,1734078645362,-705.80076456,0.00028219,7]
[345187624,1734078645372,-500.0,0.00028219,7]
[345187626,1734078645381,-547.79,0.00028219,7]
[345187628,1734078645391,-500.0,0.00028219,7]
[345187630,1734078645400,-500.0,0.00028219,7]
[345187632,1734078645409,-500.0,0.00028219,7]
[345187634,1734078645419,-864.2,0.00028219,7]
[345187636,1734078645428,-500.0,0.00028219,7]
[345187638,1734078645438,-996.91,0.00028219,7]
[345187640,1734078645447,-500.0,0.00028219,7]
[345187641,1734078645456,-500.0,0.00028219,7]
[345187643,1734078645470,-344.44268751,0.00028219,7]
[345187645,1734078645480,-1115.73,0.00028219,7]
[345187647,1734078645490,-500.0,0.00028219,7]
[345187649,1734078645499,-644.68,0.00028219,7]
[345187651,1734078645509,-500.0,0.00028219,7]
[345187653,1734078645518,-500.0,0.00028219,7]
[345187655,1734078645528,-1430.79272573,0.00028219,7]
[345187732,1734078646274,-500.0,0.00027397,7]
[345187734,1734078646283,-500.0,0.00027397,7]
[345187736,1734078646292,-1073.44,0.00027516,15]
[345187738,1734078646301,-500.0,0.00027671,7]
[345187740,1734078646312,-500.0,0.00027671,7]
[345187742,1734078646321,-500.0,0.00027945,7]
[345187744,1734078646330,-500.0,0.00027945,7]
[345187746,1734078646339,-294.56727427,0.00028219,7]
[345187748,1734078646349,-500.0,0.00028219,7]
[345187750,1734078646358,-669.81,0.00028219,7]
[345187752,1734078646367,-804.63,0.00028219,7]
[345187755,1734078646377,-500.0,0.00028219,7]
[345187757,1734078646386,-500.0,0.00028219,7]
[345187759,1734078646395,-1000.0,0.00028221,5]
[345187761,1734078646404,-500.0,0.00028295,2]
[345187763,1734078646413,-59.86248921,0.000283,2]
[345187773,1734078646504,-1722.3396068,0.000283,2]
[345187788,1734078646632,-634.56425145,0.000283,2]
[345187791,1734078646644,-1205.7999992,0.000283,2]
[345187793,1734078646655,-476.0323983,0.000283,2]
[345187795,1734078646666,-495.1144016,0.000283,2]
[345187797,1734078646678,-823.2107342,0.000283,2]
[345187799,1734078646690,-471.8561426,0.000283,2]
[345187801,1734078646701,-351.432246,0.000283,2]
[345187804,1734078646713,-6753.91773064,0.000283,2]
[345187806,1734078646722,-500.0,0.00028326,2]
[345187808,1734078646731,-1000.0,0.0002836,2]
[345187810,1734078646740,-413.17594797,0.00028383,2]
[345187812,1734078646750,-500.0,0.00028391,2]
[345187814,1734078646759,-823.39190259,0.00028452,2]
[345187816,1734078646768,-210.54431846,0.00028493,7]
[345187818,1734078646780,-289.45568154,0.00028493,7]
[345187820,1734078646790,-76.61137276,0.00028493,7]
[345187822,1734078646802,-423.38862724,0.00028493,7]
[345187824,1734078646811,-509.79303304,0.00028493,7]
[345187826,1734078646820,-500.0,0.00028493,7]
[345187828,1734078646830,-500.0,0.00028493,7]
[345187830,1734078646839,-500.0,0.00028493,7]
[345187832,1734078646848,-476.91833972,0.00028493,7]
[345187834,1734078646860,-23.08166028,0.00028493,7]
[345187836,1734078646869,-500.0,0.00028493,7]
[345187838,1734078646879,-500.0,0.00028493,7]
[345187841,1734078646889,-523.70434026,0.00028493,7]
[345187871,1734078647156,-643.44004,0.00027671,7]
[345187873,1734078647166,-643.44004,0.00027671,7]
[345187875,1734078647175,-643.44004,0.00027671,7]
[345187877,1734078647184,-643.44004,0.00027671,7]
[345187879,1734078647193,-643.44004,0.00027945,7]
[345187881,1734078647202,-643.44004,0.00027945,7]
[345187883,1734078647211,-643.44004,0.00027945,7]
[345187885,1734078647223,-17.55940322,0.00028493,7]
[345187887,1734078647234,-242.08625652,0.00028493,7]
[345187889,1734078647243,-500.0,0.00028493,7]
[345187891,1734078647252,-500.0,0.00028493,7]
[345187893,1734078647262,-500.0,0.00028493,7]
[345187895,1734078647273,-360.13031357,0.00028493,7]
[345187897,1734078647282,-500.0,0.00028493,7]
[345187899,1734078647292,-507.82,0.00028493,7]
[345187901,1734078647301,-500.0,0.00028493,7]
[345187903,1734078647311,-500.0,0.00028493,7]
[345187905,1734078647320,-500.0,0.00028493,7]
[345187907,1734078647329,-635.99,0.00028493,7]
[345187909,1734078647338,-500.0,0.00028493,7]
[345187911,1734078647348,-500.0,0.00028493,7]
[345187912,1734078647357,-340.23615933,0.00028493,7]
[345187914,1734078647367,-500.0,0.00028493,7]
[345187916,1734078647375,-500.0,0.00028493,7]
[345187918,1734078647384,-270.18489422,0.00028493,7]
[345187920,1734078647393,-500.0,0.00028493,7]
[345187922,1734078647402,-500.0,0.00028493,7]
[345187924,1734078647411,-500.0,0.00028493,7]
[345187925,1734078647421,-324.725722,0.00028493,7]
[345187928,1734078647431,-316.66367957,0.00028493,7]
[345187929,1734078647441,-500.0,0.00028493,7]
[345187931,1734078647450,-500.0,0.00028493,7]
[345187933,1734078647459,-644.31988418,0.00028493,7]
[345187935,1734078647470,-528.36518733,0.00028493,7]
[345187937,1734078647479,-500.0,0.00028493,7]
[345187939,1734078647488,-500.0,0.00028493,7]
[345187941,1734078647497,-953.29,0.00028493,7]
[345187943,1734078647506,-500.0,0.00028493,7]
[345187945,1734078647515,-500.0,0.00028493,7]
[345187947,1734078647525,-500.0,0.00028493,7]
[345187949,1734078647534,-500.0,0.00028493,7]
[345187951,1734078647543,-500.0,0.00028493,2]
[345187953,1734078647553,-500.0,0.00028493,7]
[345187955,1734078647562,-500.0,0.00028493,7]
[345187957,1734078647571,-632.97,0.00028493,7]
[345187959,1734078647581,-500.0,0.00028493,7]
[345187961,1734078647590,-500.0,0.00028493,7]
[345187963,1734078647599,-791.85,0.00028493,7]
[345187965,1734078647610,-506.98,0.00028493,7]
[345187967,1734078647619,-500.0,0.00028493,7]
[345187969,1734078647628,-500.0,0.00028493,7]
[345187971,1734078647638,-500.0,0.00028493,7]
[345187973,1734078647647,-2029.66,0.00028493,7]
[345187975,1734078647656,-450.7352988,0.00028493,7]
[345187977,1734078647666,-500.0,0.00028493,7]
[345187979,1734078647675,-500.0,0.00028493,7]
[345187981,1734078647684,-500.0,0.00028493,7]
[345187983,1734078647694,-500.0,0.00028493,7]
[345187985,1734078647704,-500.0,0.00028493,7]
[345187987,1734078647714,-500.0,0.00028493,7]
[345187989,1734078647723,-500.0,0.00028493,7]
[345187991,1734078647732,-500.0,0.00028493,7]
[345187993,1734078647741,-500.0,0.00028493,7]
[345187995,1734078647751,-500.0,0.00028493,7]
[345187997,1734078647760,-652.81,0.00028493,7]
[345187999,1734078647769,-500.0,0.00028493,7]
[345188001,1734078647778,-629.53,0.00028493,7]
[345188003,1734078647788,-500.0,0.00028493,7]
[345188005,1734078647797,-500.0,0.00028493,7]
[345188007,1734078647806,-518.98,0.00028493,7]
[345188009,1734078647816,-572.55,0.00028493,7]
[345188011,1734078647825,-500.0,0.00028493,7]
[345188013,1734078647834,-500.0,0.00028493,7]
[345188015,1734078647844,-763.88,0.00028493,7]
[345188017,1734078647853,-500.0,0.00028493,7]
[345188019,1734078647862,-500.0,0.00028493,7]
[345188021,1734078647872,-789.22,0.00028493,7]
[345188023,1734078647882,-500.0,0.00028493,7]
[345188025,1734078647891,-500.0,0.00028493,7]
[345188027,1734078647900,-500.0,0.00028493,7]
[345188029,1734078647910,-500.0,0.00028493,7]
[345188031,1734078647919,-767.63132257,0.00028493,7]
[345188034,1734078647932,-143.33867743,0.00028493,7]
[345188036,1734078647941,-1056.83,0.00028493,7]
[345188038,1734078647951,-500.0,0.00028493,7]
[345188040,1734078647960,-500.0,0.00028493,7]
[345188042,1734078647973,-500.0,0.00028493,7]
[345188044,1734078647983,-500.0,0.00028493,7]
[345188046,1734078647992,-500.0,0.00028493,7]
[345188048,1734078648002,-500.0,0.00028493,7]
[345188050,1734078648011,-95.11042523,0.00028493,7]
[345188072,1734078648213,-643.44004,0.00027671,7]
[345188074,1734078648227,-643.44004,0.00027671,7]